[Event "*** Titled Tuesday Blitz"]
[Site "Chess.com"]
[Date "2021.02.16"]
[Round "8"]
[White "MoreChessJulia"]
[Black "Matols"]
[Result "1-0"]
[WhiteElo "2140"]
[BlackElo "2232"]
[TimeControl "180+1"]
[EndTime "11:27:42 PST"]
[Termination "MoreChessJulia won by resignation"]

1. d4 {[%clk 0:03:00.9]} 1... Nf6 {[%clk 0:02:58.9]} 2. c4 {[%clk 0:02:59.9]}
2... e6 {[%clk 0:02:59]} 3. Nf3 {[%clk 0:02:59.3]} 3... b6 {[%clk 0:02:57.8]} 4.
g3 {[%clk 0:02:57.5]} 4... Ba6 {[%clk 0:02:57.2]} 5. Nbd2 {[%clk 0:02:56.1]}
5... d5 {[%clk 0:02:47.5]} 6. Bg2 {[%clk 0:02:50]} 6... Be7 {[%clk 0:02:44.6]}
7. O-O {[%clk 0:02:49.1]} 7... O-O {[%clk 0:02:44]} 8. cxd5 {[%clk 0:02:47]}
8... exd5 {[%clk 0:02:42.6]} 9. Ne5 {[%clk 0:02:45.5]} 9... Bb7 {[%clk
0:02:40.6]} 10. e3 {[%clk 0:02:43]} 10... Nbd7 {[%clk 0:02:39.4]} 11. Nd3 {[%clk
0:02:41.7]} 11... c5 {[%clk 0:02:34.2]} 12. dxc5 {[%clk 0:02:39.1]} 12... bxc5
{[%clk 0:02:32.9]} 13. Re1 {[%clk 0:02:36.5]} 13... Rc8 {[%clk 0:02:30.4]} 14.
b3 {[%clk 0:02:35.4]} 14... Re8 {[%clk 0:02:28.2]} 15. Bb2 {[%clk 0:02:34.9]}
15... Qb6 {[%clk 0:02:18.9]} 16. Rc1 {[%clk 0:02:33.3]} 16... Bf8 {[%clk
0:02:15.4]} 17. Nf4 {[%clk 0:02:31.1]} 17... Ne4 {[%clk 0:02:09.3]} 18. Nxe4
{[%clk 0:02:28.3]} 18... dxe4 {[%clk 0:02:08.5]} 19. Qxd7 {[%clk 0:02:27.1]}
19... Rcd8 {[%clk 0:01:58.3]} 20. Qg4 {[%clk 0:02:07.8]} 20... Rd2 {[%clk
0:01:54.3]} 21. Re2 {[%clk 0:02:07.1]} 21... Red8 {[%clk 0:01:52.1]} 22. Rxd2
{[%clk 0:02:06.5]} 22... Rxd2 {[%clk 0:01:51.3]} 23. Bc3 {[%clk 0:02:01.4]}
23... Rxa2 {[%clk 0:01:49.8]} 24. Nh5 {[%clk 0:01:59]} 24... Qg6 {[%clk
0:01:37.9]} 25. Qxg6 {[%clk 0:01:52.9]} 25... hxg6 {[%clk 0:01:37]} 26. Nf4
{[%clk 0:01:52]} 26... g5 {[%clk 0:01:34.5]} 27. Nh5 {[%clk 0:01:48.5]} 27... f6
{[%clk 0:01:29]} 28. g4 {[%clk 0:01:48.2]} 28... Bd5 {[%clk 0:01:22.4]} 29. Ng3
{[%clk 0:01:45.4]} 29... Bxb3 {[%clk 0:01:20.1]} 30. Bxe4 {[%clk 0:01:45.7]}
30... a5 {[%clk 0:01:16.1]} 31. Nf5 {[%clk 0:01:38]} 31... a4 {[%clk 0:01:13.9]}
32. Bb1 {[%clk 0:01:34.7]} 32... Re2 {[%clk 0:01:02.5]} 33. Ng3 {[%clk
0:01:31.8]} 1-0

[Event "*** Titled Tuesday Blitz"]
[Site "Chess.com"]
[Date "2021.02.16"]
[Round "8"]
[White "VladimirBugayev"]
[Black "Tashik"]
[Result "0-1"]
[WhiteElo "2304"]
[BlackElo "2441"]
[TimeControl "180+1"]
[EndTime "11:27:43 PST"]
[Termination "Tashik won by resignation"]

1. e4 {[%clk 0:02:57.8]} 1... e5 {[%clk 0:02:59.7]} 2. Nf3 {[%clk 0:02:57.1]}
2... Nc6 {[%clk 0:03:00.2]} 3. d4 {[%clk 0:02:57.5]} 3... exd4 {[%clk
0:02:59.6]} 4. Nxd4 {[%clk 0:02:57.5]} 4... Nf6 {[%clk 0:03:00]} 5. Nxc6 {[%clk
0:02:55.4]} 5... bxc6 {[%clk 0:03:00.9]} 6. e5 {[%clk 0:02:55.6]} 6... Qe7
{[%clk 0:03:00.7]} 7. Qe2 {[%clk 0:02:56.2]} 7... Nd5 {[%clk 0:03:01.2]} 8. c4
{[%clk 0:02:56.7]} 8... Nb6 {[%clk 0:03:00.7]} 9. h4 {[%clk 0:02:55.7]} 9... Qe6
{[%clk 0:02:53.3]} 10. g3 {[%clk 0:02:40.4]} 10... Bb7 {[%clk 0:02:49.3]} 11. b3
{[%clk 0:02:34.9]} 11... c5 {[%clk 0:02:49]} 12. Bh3 {[%clk 0:02:17.5]} 12...
Qc6 {[%clk 0:02:36.7]} 13. Rh2 {[%clk 0:02:15.6]} 13... O-O-O {[%clk 0:02:33.8]}
14. Bb2 {[%clk 0:01:48.6]} 14... Kb8 {[%clk 0:02:29.4]} 15. Nd2 {[%clk
0:01:48.1]} 15... d5 {[%clk 0:02:04.8]} 16. cxd5 {[%clk 0:01:16.4]} 16... Nxd5
{[%clk 0:02:01.9]} 17. O-O-O {[%clk 0:01:13.6]} 17... Nb4 {[%clk 0:02:00.9]} 18.
Bg2 {[%clk 0:00:57]} 18... Qg6 {[%clk 0:01:49.4]} 19. Be4 {[%clk 0:00:43.4]}
19... Bxe4 {[%clk 0:01:25.7]} 20. Qxe4 {[%clk 0:00:38]} 20... Nxa2+ {[%clk
0:01:16.9]} 21. Kc2 {[%clk 0:00:31.6]} 21... Rxd2+ {[%clk 0:01:16.2]} 0-1

[Event "*** Titled Tuesday Blitz"]
[Site "Chess.com"]
[Date "2021.02.16"]
[Round "8"]
[White "Evachess2006"]
[Black "beto-betun"]
[Result "0-1"]
[WhiteElo "1605"]
[BlackElo "2185"]
[TimeControl "180+1"]
[EndTime "11:27:48 PST"]
[Termination "beto-betun won by resignation"]

1. e4 {[%clk 0:03:00.9]} 1... c5 {[%clk 0:02:55.9]} 2. c3 {[%clk 0:02:59.5]}
2... d5 {[%clk 0:02:55.7]} 3. exd5 {[%clk 0:02:57.2]} 3... Qxd5 {[%clk
0:02:56.6]} 4. d4 {[%clk 0:02:54.6]} 4... Nc6 {[%clk 0:02:50.7]} 5. Nf3 {[%clk
0:02:53.1]} 5... Bg4 {[%clk 0:02:49.1]} 6. Be2 {[%clk 0:02:43.3]} 6... e6 {[%clk
0:02:49.4]} 7. O-O {[%clk 0:02:41.1]} 7... cxd4 {[%clk 0:02:47.8]} 8. Nxd4
{[%clk 0:02:35.5]} 8... Bxe2 {[%clk 0:02:41]} 9. Nxe2 {[%clk 0:02:33.1]} 9...
Nf6 {[%clk 0:02:38.6]} 10. Qxd5 {[%clk 0:02:31.9]} 10... Nxd5 {[%clk 0:02:39.5]}
11. Be3 {[%clk 0:02:26.1]} 11... Nxe3 {[%clk 0:02:33.7]} 12. fxe3 {[%clk
0:02:26.1]} 12... Bc5 {[%clk 0:02:29.3]} 13. Re1 {[%clk 0:02:24.6]} 13... Bxe3+
{[%clk 0:02:24.5]} 14. Kf1 {[%clk 0:02:19.4]} 14... O-O-O {[%clk 0:02:21.6]} 15.
Na3 {[%clk 0:02:14.3]} 15... Rd7 {[%clk 0:02:08.4]} 16. Rad1 {[%clk 0:02:09.9]}
16... Bd2 {[%clk 0:02:04.1]} 17. Nb5 {[%clk 0:01:32.3]} 17... Bxe1 {[%clk
0:02:00.4]} 18. Rxd7 {[%clk 0:01:26.2]} 18... Kxd7 {[%clk 0:02:01.3]} 19. Kxe1
{[%clk 0:01:26.4]} 19... a6 {[%clk 0:01:50.9]} 20. Nbd4 {[%clk 0:01:24.8]} 20...
Nxd4 {[%clk 0:01:47.2]} 21. cxd4 {[%clk 0:01:24.2]} 21... Rc8 {[%clk 0:01:40.1]}
22. Kd2 {[%clk 0:01:22]} 22... Kd6 {[%clk 0:01:38.8]} 23. Kd3 {[%clk 0:01:11.7]}
23... f5 {[%clk 0:01:36.2]} 24. Nc3 {[%clk 0:01:09.2]} 24... e5 {[%clk
0:01:34.7]} 25. dxe5+ {[%clk 0:01:06]} 25... Kxe5 {[%clk 0:01:35.6]} 26. g3
{[%clk 0:01:06.2]} 26... g5 {[%clk 0:01:33.9]} 27. b3 {[%clk 0:01:00.2]} 27...
Rxc3+ {[%clk 0:01:27.8]} 28. Kxc3 {[%clk 0:00:58.2]} 28... Ke4 {[%clk
0:01:28.3]} 29. Kc4 {[%clk 0:00:48.5]} 29... f4 {[%clk 0:01:26.5]} 30. gxf4
{[%clk 0:00:48.3]} 30... gxf4 {[%clk 0:01:27.1]} 31. Kc3 {[%clk 0:00:48.4]}
31... Ke3 {[%clk 0:01:25.7]} 32. Kc2 {[%clk 0:00:46.4]} 32... Ke2 {[%clk
0:01:26.2]} 0-1

[Event "*** Titled Tuesday Blitz"]
[Site "Chess.com"]
[Date "2021.02.16"]
[Round "8"]
[White "WonderChampion"]
[Black "muchojogo"]
[Result "0-1"]
[WhiteElo "2098"]
[BlackElo "2332"]
[TimeControl "180+1"]
[EndTime "11:27:51 PST"]
[Termination "muchojogo won by resignation"]

1. d4 {[%clk 0:03:00.8]} 1... Nf6 {[%clk 0:02:59.9]} 2. Bg5 {[%clk 0:02:59.8]}
2... Ne4 {[%clk 0:02:56.3]} 3. Bf4 {[%clk 0:02:59.1]} 3... e6 {[%clk 0:02:56.8]}
4. f3 {[%clk 0:02:56.8]} 4... Bd6 {[%clk 0:02:56.7]} 5. Bxd6 {[%clk 0:02:46.6]}
5... Nxd6 {[%clk 0:02:57.6]} 6. e4 {[%clk 0:02:45.6]} 6... f5 {[%clk 0:02:57.4]}
7. Bd3 {[%clk 0:02:44.3]} 7... O-O {[%clk 0:02:55.8]} 8. Ne2 {[%clk 0:02:40.8]}
8... b6 {[%clk 0:02:43.4]} 9. O-O {[%clk 0:02:39]} 9... Bb7 {[%clk 0:02:43.6]}
10. Nbc3 {[%clk 0:02:38.3]} 10... Nc6 {[%clk 0:02:43.1]} 11. exf5 {[%clk
0:02:24.8]} 11... Nxf5 {[%clk 0:02:42.4]} 12. Bxf5 {[%clk 0:02:14.4]} 12... Rxf5
{[%clk 0:02:43.3]} 13. d5 {[%clk 0:02:09.6]} 13... exd5 {[%clk 0:02:41.1]} 14.
Nxd5 {[%clk 0:02:09.9]} 14... d6 {[%clk 0:02:39.8]} 15. c4 {[%clk 0:02:08.5]}
15... Qd7 {[%clk 0:02:38.9]} 16. Qd3 {[%clk 0:02:06.6]} 16... Raf8 {[%clk
0:02:37]} 17. Ng3 {[%clk 0:02:04.2]} 17... Ne5 {[%clk 0:02:35.4]} 18. Qd1 {[%clk
0:01:59.7]} 18... R5f7 {[%clk 0:02:30.4]} 19. b3 {[%clk 0:01:59.1]} 19... Ng6
{[%clk 0:02:18.5]} 20. Ne4 {[%clk 0:01:55.4]} 20... Nf4 {[%clk 0:02:16.3]} 21.
Nxf4 {[%clk 0:01:49.7]} 21... Rxf4 {[%clk 0:02:17.2]} 22. Nc3 {[%clk 0:01:46.5]}
22... Qc6 {[%clk 0:02:11.4]} 23. Nd5 {[%clk 0:01:44.2]} 23... Qc5+ {[%clk
0:02:08.9]} 24. Kh1 {[%clk 0:01:42.4]} 24... Rd4 {[%clk 0:02:05.5]} 25. Ne7+
{[%clk 0:01:37.1]} 25... Kh8 {[%clk 0:02:05.5]} 26. Qe2 {[%clk 0:01:36.1]} 26...
Qh5 {[%clk 0:02:02.4]} 27. Rad1 {[%clk 0:01:30.1]} 27... Rh4 {[%clk 0:02:00.2]}
28. h3 {[%clk 0:01:19.3]} 28... Re8 {[%clk 0:02:00.4]} 29. Rfe1 {[%clk 0:01:11]}
29... Rxh3+ {[%clk 0:01:56]} 30. gxh3 {[%clk 0:01:06.1]} 30... Bxf3+ {[%clk
0:01:55.8]} 31. Qxf3 {[%clk 0:00:55.6]} 31... Qxf3+ {[%clk 0:01:56.7]} 32. Kg1
{[%clk 0:00:55.2]} 32... Qg3+ {[%clk 0:01:55.8]} 33. Kh1 {[%clk 0:00:51.9]}
33... Qxh3+ {[%clk 0:01:54.6]} 34. Kg1 {[%clk 0:00:52]} 34... Qg4+ {[%clk
0:01:54.8]} 35. Kf1 {[%clk 0:00:48.9]} 35... Rxe7 {[%clk 0:01:54.1]} 36. Rxe7
{[%clk 0:00:46.1]} 36... Qxd1+ {[%clk 0:01:53.8]} 37. Re1 {[%clk 0:00:41.3]}
37... Qf3+ {[%clk 0:01:53.3]} 38. Kg1 {[%clk 0:00:40.2]} 38... h5 {[%clk
0:01:54.2]} 39. Re8+ {[%clk 0:00:38.9]} 39... Kh7 {[%clk 0:01:52.2]} 40. Re7
{[%clk 0:00:39]} 40... h4 {[%clk 0:01:50.4]} 0-1

[Event "*** Titled Tuesday Blitz"]
[Site "Chess.com"]
[Date "2021.02.16"]
[Round "8"]
[White "frenchpin"]
[Black "Smile2005"]
[Result "1-0"]
[WhiteElo "2490"]
[BlackElo "2343"]
[TimeControl "180+1"]
[EndTime "11:27:56 PST"]
[Termination "frenchpin won by resignation"]

1. e4 {[%clk 0:03:00.9]} 1... d5 {[%clk 0:02:59.2]} 2. exd5 {[%clk 0:03:00.5]}
2... Nf6 {[%clk 0:02:59.5]} 3. d4 {[%clk 0:02:57.8]} 3... Nxd5 {[%clk
0:02:59.9]} 4. c4 {[%clk 0:02:58.2]} 4... Nb6 {[%clk 0:03:00]} 5. Nc3 {[%clk
0:02:58.5]} 5... e5 {[%clk 0:03:00.7]} 6. dxe5 {[%clk 0:02:56.4]} 6... Qxd1+
{[%clk 0:03:01.6]} 7. Kxd1 {[%clk 0:02:56.7]} 7... Nc6 {[%clk 0:03:02.2]} 8. Bf4
{[%clk 0:02:52.5]} 8... Bf5 {[%clk 0:02:57.5]} 9. a3 {[%clk 0:02:43.2]} 9...
O-O-O+ {[%clk 0:02:57.4]} 10. Ke1 {[%clk 0:02:40.7]} 10... Na5 {[%clk
0:02:57.3]} 11. Rd1 {[%clk 0:02:23.9]} 11... Rxd1+ {[%clk 0:02:54.2]} 12. Kxd1
{[%clk 0:02:24.8]} 12... Naxc4 {[%clk 0:02:55.1]} 13. Kc1 {[%clk 0:02:23]} 13...
Bc5 {[%clk 0:02:54.1]} 14. Nf3 {[%clk 0:02:13.1]} 14... Bxf2 {[%clk 0:02:52.9]}
15. Ng5 {[%clk 0:02:09.9]} 15... Bg6 {[%clk 0:02:49.3]} 16. Be2 {[%clk
0:02:03.2]} 16... h6 {[%clk 0:02:41]} 17. Bg4+ {[%clk 0:02:02]} 17... Kb8 {[%clk
0:02:40.7]} 18. Nf3 {[%clk 0:01:54.6]} 18... Ne3 {[%clk 0:02:40.7]} 19. Bh3
{[%clk 0:01:47.6]} 19... Rd8 {[%clk 0:02:37.4]} 20. Nd2 {[%clk 0:01:18.2]} 20...
Nec4 {[%clk 0:02:08.6]} 21. Rf1 {[%clk 0:00:49.7]} 21... Be3 {[%clk 0:02:03]}
22. Bxe3 {[%clk 0:00:48.3]} 22... Nxe3 {[%clk 0:02:03.9]} 23. Rf4 {[%clk
0:00:48]} 23... Ned5 {[%clk 0:01:58.6]} 24. Rf3 {[%clk 0:00:37.3]} 24... Nxc3
{[%clk 0:01:57.4]} 25. Rxc3 {[%clk 0:00:38.2]} 25... c6 {[%clk 0:01:53.8]} 26.
g3 {[%clk 0:00:34.3]} 26... Rd5 {[%clk 0:01:53]} 27. Re3 {[%clk 0:00:33.2]}
27... Rd3 {[%clk 0:01:49.5]} 28. Re2 {[%clk 0:00:29.2]} 28... Kc7 {[%clk
0:01:45.4]} 29. e6 {[%clk 0:00:27.6]} 29... fxe6 {[%clk 0:01:44.2]} 30. Rxe6
{[%clk 0:00:26.8]} 30... Bh7 {[%clk 0:01:44.3]} 31. Re7+ {[%clk 0:00:26.2]}
31... Kd6 {[%clk 0:01:41.7]} 32. Rxg7 {[%clk 0:00:26.1]} 1-0

[Event "*** Titled Tuesday Blitz"]
[Site "Chess.com"]
[Date "2021.02.16"]
[Round "8"]
[White "NTBT_DHS"]
[Black "oneshot007"]
[Result "1-0"]
[WhiteElo "2773"]
[BlackElo "2513"]
[TimeControl "180+1"]
[EndTime "11:28:00 PST"]
[Termination "NTBT_DHS won by resignation"]

1. e4 {[%clk 0:03:00.9]} 1... c5 {[%clk 0:02:59]} 2. Nf3 {[%clk 0:03:01.3]} 2...
Nc6 {[%clk 0:02:59.3]} 3. d4 {[%clk 0:03:00.7]} 3... cxd4 {[%clk 0:03:00.2]} 4.
Nxd4 {[%clk 0:03:01.6]} 4... Nf6 {[%clk 0:03:00.8]} 5. Nc3 {[%clk 0:03:01.8]}
5... e5 {[%clk 0:03:01]} 6. Ndb5 {[%clk 0:03:02.4]} 6... d6 {[%clk 0:03:01.5]}
7. Nd5 {[%clk 0:03:02.8]} 7... Nxd5 {[%clk 0:03:01.4]} 8. exd5 {[%clk
0:03:03.7]} 8... Nb8 {[%clk 0:03:02]} 9. a4 {[%clk 0:03:01.6]} 9... Be7 {[%clk
0:03:01.7]} 10. Bd3 {[%clk 0:03:01]} 10... O-O {[%clk 0:02:58.9]} 11. O-O {[%clk
0:03:01.5]} 11... f5 {[%clk 0:02:58.9]} 12. f4 {[%clk 0:03:00.7]} 12... e4
{[%clk 0:02:56.8]} 13. Be2 {[%clk 0:03:01.2]} 13... Nd7 {[%clk 0:02:53.4]} 14.
Nd4 {[%clk 0:02:53.3]} 14... Nf6 {[%clk 0:02:49.4]} 15. b4 {[%clk 0:02:45.9]}
15... Kh8 {[%clk 0:02:45.6]} 16. c4 {[%clk 0:02:45.2]} 16... a5 {[%clk
0:02:44.7]} 17. b5 {[%clk 0:02:43.2]} 17... Qe8 {[%clk 0:02:28.9]} 18. Ra3
{[%clk 0:02:37.8]} 18... Bd8 {[%clk 0:02:27.4]} 19. Rh3 {[%clk 0:02:29.1]} 19...
Bb6 {[%clk 0:02:26.6]} 20. Be3 {[%clk 0:02:29.7]} 20... Bd7 {[%clk 0:02:10.2]}
21. Qe1 {[%clk 0:02:16]} 21... Rc8 {[%clk 0:02:10]} 22. Qh4 {[%clk 0:02:15.6]}
22... Qg6 {[%clk 0:02:06.9]} 23. Rg3 {[%clk 0:02:13.6]} 23... Qf7 {[%clk
0:02:06.5]} 24. Nxf5 {[%clk 0:02:11.4]} 24... Bxf5 {[%clk 0:02:03.1]} 25. Bxb6
{[%clk 0:02:11]} 25... e3 {[%clk 0:02:03.3]} 26. Rxe3 {[%clk 0:02:02.2]} 26...
Rfe8 {[%clk 0:02:02.5]} 27. Rxe8+ {[%clk 0:01:48.5]} 27... Rxe8 {[%clk
0:02:03.4]} 28. Bf3 {[%clk 0:01:47.9]} 28... Bd3 {[%clk 0:02:02.9]} 29. Rc1
{[%clk 0:01:40.1]} 29... Nd7 {[%clk 0:01:57.9]} 30. Bd4 {[%clk 0:01:35.1]} 30...
Nc5 {[%clk 0:01:52.4]} 31. Bxc5 {[%clk 0:01:33.1]} 31... dxc5 {[%clk 0:01:53.3]}
32. h3 {[%clk 0:01:33.6]} 32... b6 {[%clk 0:01:39.2]} 33. Kh2 {[%clk 0:01:29.2]}
33... h6 {[%clk 0:01:35.5]} 34. Bh5 {[%clk 0:01:20.8]} 34... g6 {[%clk
0:01:31.1]} 35. Bf3 {[%clk 0:01:20.7]} 35... Kg7 {[%clk 0:01:29.2]} 36. Rc3
{[%clk 0:01:17.6]} 36... Re3 {[%clk 0:01:22.6]} 37. d6 {[%clk 0:01:01]} 37...
Qe8 {[%clk 0:01:19.4]} 38. Bc6 {[%clk 0:00:56.1]} 38... Qd8 {[%clk 0:01:14.9]}
39. Qxd8 {[%clk 0:00:55.2]} 1-0

[Event "*** Titled Tuesday Blitz"]
[Site "Chess.com"]
[Date "2021.02.16"]
[Round "8"]
[White "Atco84"]
[Black "A-S-00"]
[Result "0-1"]
[WhiteElo "2433"]
[BlackElo "2324"]
[TimeControl "180+1"]
[EndTime "11:28:01 PST"]
[Termination "A-S-00 won by resignation"]

1. d4 {[%clk 0:03:00.9]} 1... Nf6 {[%clk 0:02:58.7]} 2. c4 {[%clk 0:03:00.9]}
2... g6 {[%clk 0:02:58.5]} 3. g3 {[%clk 0:03:00.7]} 3... Bg7 {[%clk 0:02:58.3]}
4. Bg2 {[%clk 0:02:59.3]} 4... O-O {[%clk 0:02:55.7]} 5. Nf3 {[%clk 0:02:59]}
5... d6 {[%clk 0:02:55.7]} 6. O-O {[%clk 0:02:56.9]} 6... Nbd7 {[%clk
0:02:53.9]} 7. Nc3 {[%clk 0:02:57.2]} 7... e5 {[%clk 0:02:53.3]} 8. e4 {[%clk
0:02:56.8]} 8... c6 {[%clk 0:02:51.3]} 9. Qc2 {[%clk 0:02:49.4]} 9... Re8 {[%clk
0:02:46.8]} 10. Rd1 {[%clk 0:02:45.5]} 10... exd4 {[%clk 0:02:44]} 11. Nxd4
{[%clk 0:02:45.6]} 11... Qe7 {[%clk 0:02:37.4]} 12. b3 {[%clk 0:02:37.8]} 12...
Nc5 {[%clk 0:02:34.9]} 13. f3 {[%clk 0:02:36.4]} 13... a5 {[%clk 0:02:28.2]} 14.
a3 {[%clk 0:02:31.4]} 14... Nfd7 {[%clk 0:02:25.5]} 15. Rb1 {[%clk 0:02:27.7]}
15... f5 {[%clk 0:02:06.2]} 16. exf5 {[%clk 0:02:23.6]} 16... Bxd4+ {[%clk
0:02:05.3]} 17. Rxd4 {[%clk 0:02:20.2]} 17... Qe1+ {[%clk 0:02:05.2]} 18. Bf1
{[%clk 0:02:19.6]} 18... Ne5 {[%clk 0:02:04.1]} 19. Rf4 {[%clk 0:01:55.3]} 19...
Bxf5 {[%clk 0:02:03]} 20. Rxf5 {[%clk 0:01:55]} 20... gxf5 {[%clk 0:02:02.3]}
21. Kg2 {[%clk 0:01:03.1]} 21... Nxf3 {[%clk 0:01:57.7]} 22. Bf4 {[%clk
0:00:50.3]} 22... Nd4 {[%clk 0:01:55.6]} 23. Qb2 {[%clk 0:00:30.1]} 23... Qe7
{[%clk 0:01:53.4]} 24. Nd5 {[%clk 0:00:25]} 24... Qe4+ {[%clk 0:01:49.8]} 25.
Kh3 {[%clk 0:00:24.3]} 25... cxd5 {[%clk 0:01:47.1]} 26. Bg2 {[%clk 0:00:24.3]}
26... Nf3 {[%clk 0:01:43.5]} 27. Rf1 {[%clk 0:00:21.5]} 27... Nd3 {[%clk
0:01:33.6]} 28. Qf6 {[%clk 0:00:16.7]} 28... Nxf4+ {[%clk 0:01:31]} 29. gxf4
{[%clk 0:00:17.6]} 29... Re6 {[%clk 0:01:29.4]} 0-1

[Event "*** Titled Tuesday Blitz"]
[Site "Chess.com"]
[Date "2021.02.16"]
[Round "8"]
[White "Ginger_GM"]
[Black "GMKrikor"]
[Result "0-1"]
[WhiteElo "2638"]
[BlackElo "2811"]
[TimeControl "180+1"]
[EndTime "11:28:03 PST"]
[Termination "GMKrikor won by resignation"]

1. e4 {[%clk 0:03:00.9]} 1... c5 {[%clk 0:02:58.9]} 2. b4 {[%clk 0:03:00.4]}
2... cxb4 {[%clk 0:02:57.9]} 3. a3 {[%clk 0:03:00.1]} 3... bxa3 {[%clk
0:02:56.2]} 4. d4 {[%clk 0:02:58.2]} 4... d5 {[%clk 0:02:50.6]} 5. exd5 {[%clk
0:02:53]} 5... Qxd5 {[%clk 0:02:46.3]} 6. Nc3 {[%clk 0:02:39.5]} 6... Qd8 {[%clk
0:02:43.2]} 7. Bxa3 {[%clk 0:02:32.6]} 7... Nf6 {[%clk 0:02:42.8]} 8. Nf3 {[%clk
0:02:28.3]} 8... g6 {[%clk 0:02:38.6]} 9. Bc4 {[%clk 0:02:25.6]} 9... Bg7 {[%clk
0:02:38.6]} 10. Qe2 {[%clk 0:02:20.8]} 10... Nc6 {[%clk 0:02:18.3]} 11. O-O
{[%clk 0:02:18.7]} 11... Bg4 {[%clk 0:01:59.6]} 12. Bxf7+ {[%clk 0:02:08.7]}
12... Kxf7 {[%clk 0:01:56]} 13. Ng5+ {[%clk 0:02:06.5]} 13... Ke8 {[%clk
0:01:41.6]} 14. f3 {[%clk 0:02:02]} 14... Qxd4+ {[%clk 0:01:36.1]} 15. Kh1
{[%clk 0:02:01.9]} 15... Qxc3 {[%clk 0:00:58.9]} 16. fxg4 {[%clk 0:01:59.9]}
16... Qe5 {[%clk 0:00:46.1]} 17. Qd2 {[%clk 0:00:55.4]} 17... Rd8 {[%clk
0:00:44.3]} 18. Qc1 {[%clk 0:00:55]} 18... Nxg4 {[%clk 0:00:42.7]} 19. Nf3
{[%clk 0:00:38.9]} 19... Qxa1 {[%clk 0:00:40.4]} 20. Qf4 {[%clk 0:00:37]} 20...
Qxf1+ {[%clk 0:00:39.7]} 0-1

[Event "*** Titled Tuesday Blitz"]
[Site "Chess.com"]
[Date "2021.02.16"]
[Round "8"]
[White "Ave_Mariia"]
[Black "IAgrest"]
[Result "1-0"]
[WhiteElo "2485"]
[BlackElo "2327"]
[TimeControl "180+1"]
[EndTime "11:28:05 PST"]
[Termination "Ave_Mariia won on time"]

1. d4 {[%clk 0:03:00.9]} 1... Nf6 {[%clk 0:02:59.9]} 2. c4 {[%clk 0:02:58.7]}
2... g6 {[%clk 0:03:00.2]} 3. Nc3 {[%clk 0:02:58.6]} 3... Bg7 {[%clk 0:03:00.5]}
4. e4 {[%clk 0:02:59.2]} 4... d6 {[%clk 0:03:00.3]} 5. Be2 {[%clk 0:02:59.3]}
5... O-O {[%clk 0:03:00.4]} 6. Be3 {[%clk 0:02:58.8]} 6... Nbd7 {[%clk
0:02:59.8]} 7. g4 {[%clk 0:02:58.2]} 7... e5 {[%clk 0:02:59.8]} 8. d5 {[%clk
0:02:57.7]} 8... Nc5 {[%clk 0:02:51.1]} 9. f3 {[%clk 0:02:57.7]} 9... a5 {[%clk
0:02:47.8]} 10. h4 {[%clk 0:02:57.2]} 10... h5 {[%clk 0:02:45.7]} 11. g5 {[%clk
0:02:56.8]} 11... Nfd7 {[%clk 0:02:38.8]} 12. Qd2 {[%clk 0:02:44.8]} 12... c6
{[%clk 0:01:58.4]} 13. Nh3 {[%clk 0:02:41.4]} 13... a4 {[%clk 0:01:39]} 14. Nf2
{[%clk 0:02:36.6]} 14... Qa5 {[%clk 0:01:26.3]} 15. O-O {[%clk 0:02:32.6]} 15...
f6 {[%clk 0:00:55.2]} 16. dxc6 {[%clk 0:02:27.1]} 16... bxc6 {[%clk 0:00:55]}
17. Qxd6 {[%clk 0:02:27.3]} 17... fxg5 {[%clk 0:00:46.6]} 18. Qxg6 {[%clk
0:02:22.4]} 18... gxh4 {[%clk 0:00:33.7]} 19. Bh6 {[%clk 0:02:15.9]} 19... Rf7
{[%clk 0:00:33.4]} 20. Kh1 {[%clk 0:02:13.3]} 20... Nf8 {[%clk 0:00:30.4]} 21.
Qg5 {[%clk 0:02:06.6]} 21... Nce6 {[%clk 0:00:25.3]} 22. Qxh5 {[%clk 0:02:04.9]}
22... Nf4 {[%clk 0:00:20.2]} 23. Bxf4 {[%clk 0:02:02]} 23... Rxf4 {[%clk
0:00:21.1]} 24. Rg1 {[%clk 0:01:55.1]} 24... Ra7 {[%clk 0:00:21.2]} 25. Nd3
{[%clk 0:01:51.5]} 25... Rff7 {[%clk 0:00:13.1]} 26. Rg2 {[%clk 0:01:45.5]}
26... Nh7 {[%clk 0:00:06.9]} 27. Rag1 {[%clk 0:01:44.1]} 27... Be6 {[%clk
0:00:05.7]} 28. Qh6 {[%clk 0:01:38]} 28... Qc7 {[%clk 0:00:01.8]} 29. Qxe6
{[%clk 0:01:35.9]} 29... h3 {[%clk 0:00:02.4]} 30. Qxh3 {[%clk 0:01:35.2]} 1-0

[Event "*** Titled Tuesday Blitz"]
[Site "Chess.com"]
[Date "2021.02.16"]
[Round "8"]
[White "ChessWarrior7197"]
[Black "platy3"]
[Result "1-0"]
[WhiteElo "2962"]
[BlackElo "2848"]
[TimeControl "180+1"]
[EndTime "11:28:13 PST"]
[Termination "ChessWarrior7197 won on time"]

1. e4 {[%clk 0:03:00.9]} 1... c5 {[%clk 0:02:56.4]} 2. Nf3 {[%clk 0:03:00.6]}
2... Nc6 {[%clk 0:02:55.2]} 3. d4 {[%clk 0:03:00.6]} 3... cxd4 {[%clk
0:02:55.7]} 4. Nxd4 {[%clk 0:03:01.5]} 4... Nf6 {[%clk 0:02:56.5]} 5. Nc3 {[%clk
0:03:02.1]} 5... e5 {[%clk 0:02:56.4]} 6. Ndb5 {[%clk 0:03:02.4]} 6... d6 {[%clk
0:02:56.9]} 7. Bg5 {[%clk 0:03:02.4]} 7... a6 {[%clk 0:02:57.3]} 8. Na3 {[%clk
0:03:03]} 8... b5 {[%clk 0:02:57.8]} 9. Bxf6 {[%clk 0:03:00.7]} 9... gxf6 {[%clk
0:02:58.7]} 10. Nd5 {[%clk 0:03:01]} 10... Bg7 {[%clk 0:02:59.4]} 11. g3 {[%clk
0:03:01.3]} 11... f5 {[%clk 0:02:49.7]} 12. exf5 {[%clk 0:03:00]} 12... Bxf5
{[%clk 0:02:48.7]} 13. Bg2 {[%clk 0:02:58.8]} 13... Rc8 {[%clk 0:02:42.5]} 14.
c3 {[%clk 0:02:57.3]} 14... O-O {[%clk 0:02:42.1]} 15. O-O {[%clk 0:02:53.9]}
15... Be6 {[%clk 0:02:20.6]} 16. Nc2 {[%clk 0:02:53]} 16... f5 {[%clk 0:02:20]}
17. a4 {[%clk 0:02:53.6]} 17... bxa4 {[%clk 0:02:05.1]} 18. Rxa4 {[%clk
0:02:51.6]} 18... a5 {[%clk 0:02:05.5]} 19. Qd2 {[%clk 0:02:34.1]} 19... Rb8
{[%clk 0:02:01.2]} 20. b4 {[%clk 0:02:29.6]} 20... axb4 {[%clk 0:01:59.4]} 21.
Ncxb4 {[%clk 0:02:30]} 21... Nxb4 {[%clk 0:01:25.4]} 22. cxb4 {[%clk 0:02:30]}
22... Rf7 {[%clk 0:00:50.9]} 23. Rb1 {[%clk 0:02:25.7]} 23... h6 {[%clk
0:00:35.1]} 24. Ra6 {[%clk 0:02:21.7]} 24... Kh8 {[%clk 0:00:29.9]} 25. b5
{[%clk 0:02:20]} 25... f4 {[%clk 0:00:28.7]} 26. Be4 {[%clk 0:02:15.9]} 26... f3
{[%clk 0:00:14.9]} 27. b6 {[%clk 0:02:09.3]} 27... Qc8 {[%clk 0:00:15.1]} 28.
Rba1 {[%clk 0:02:03.4]} 28... Bf5 {[%clk 0:00:09.1]} 29. Bxf5 {[%clk 0:02:01]}
29... Qxf5 {[%clk 0:00:09.3]} 30. Ne3 {[%clk 0:01:57.1]} 30... Qe6 {[%clk
0:00:06.4]} 31. Ra8 {[%clk 0:01:57]} 31... Rb7 {[%clk 0:00:03]} 32. Qd5 {[%clk
0:01:50.8]} 32... Qxd5 {[%clk 0:00:01.9]} 33. Nxd5 {[%clk 0:01:51.7]} 33... e4
{[%clk 0:00:01.9]} 34. Rxb8+ {[%clk 0:01:49.2]} 34... Rxb8 {[%clk 0:00:01.9]}
35. Rb1 {[%clk 0:01:47.4]} 35... Bd4 {[%clk 0:00:02]} 36. b7 {[%clk 0:01:46.4]}
36... Bc5 {[%clk 0:00:01.9]} 37. Ne7 {[%clk 0:01:46.4]} 1-0